Cogmind - Beta 14 @@@ ROGUE MODE // 2024.09.05 @ 23:25:47 Player: THN-L0C Result: Destroyed by CM-VRM(R) with Subdweller Machine Gun Performance ------------- Evolutions (0) 0 Regions Visited (2) 400 Robots Destroyed (43) 215 Value Destroyed (1058) 1058 Prototype IDs (4) 80 Alien Tech Used (0) 0 Bonus (0) 0 TOTAL SCORE: 1753 Bonus ------- None Cogmind --------- Core Integrity 0/250 Matter 281/300 Energy 247/250 System Corruption 0% Temperature Cool (0) Movement Rolling (120) Ox1 Location -10/Subcaves Parts ------- > --- POWER (1) -------- Ion Engine > --- PROPULSION (2) --- Subdweller Monowheel > --- UTILITY (2) ------ Large Storage Unit Makeshift Light Armor Plating > --- WEAPON (2) ------- Barrage Gun Makeshift Shrapnel Gun > --- INVENTORY (15) --- Light Ion Engine Subdweller Power Source Subdweller Monowheel Huge Storage Unit High-capacity Matter Pod (200) Improved Terrain Scanner Seismic Detector Medium Armor Plating Medium Armor Plating Subdweller Beam Cannon Barrage Gun Barrage Gun Hammer Shrapnel Trap Piercing Trap Peak State ------------ > --- POWER ------------ Light Ion Engine > --- PROPULSION ------- Subdweller Monowheel Subdweller Monowheel > --- UTILITY ---------- Large Storage Unit Makeshift Light Armor Plating > --- WEAPON ----------- Barrage Gun Makeshift Shrapnel Gun > --- INVENTORY -------- Subdweller Power Source Subdweller Monowheel Subdweller Monowheel Huge Storage Unit High-capacity Matter Pod Improved Terrain Scanner Seismic Detector Medium Armor Plating Medium Armor Plating Subdweller Beam Cannon Shotgun Barrage Gun Barrage Gun Grenade Launcher Hammer [Rating: 19] Favorites ----------- Power Light Nuclear Core Engine Light Ion Engine Power Core Light Nuclear Core Propulsion Light Treads Treads Light Treads Wheel Subdweller Monowheel Hover Unit Hover Unit Utility Large Storage Unit Device Seismic Detector Storage Large Storage Unit Protection Medium Armor Plating Weapon Shotgun Energy Cannon Subdweller Beam Cannon Ballistic Gun Shotgun Launcher Grenade Launcher Impact Weapon Hammer Build | -11 -10 -10 ------- Run | Yrd Mat Sub Slots Evolved . | . . . Power . | . . . Propulsion . | . . . Utility . | . . . Weapon . | . . . Parts Attached 87 | 7 32 48 Power 8 | 1 4 3 Engine 4 | 1 . 3 Core 4 | . 4 . Reactor . | . . . Propulsion 12 | 2 5 5 Treads 6 | 2 4 . Leg . | . . . Wheel 5 | . . 5 Hover 1 | . 1 . Flight . | . . . Utility 34 | 2 10 22 Device 16 | 1 4 11 Storage 3 | 1 2 . Processor . | . . . Hackware . | . . . Protection 15 | . 4 11 Artifact . | . . . Weapon 33 | 2 13 18 Energy Gun . | . . . Energy Cannon 1 | . . 1 Ballistic Gun 16 | 2 5 9 Ballistic Cannon . | . . . Launcher 9 | . 4 5 Special Weapon . | . . . Impact Weapon 7 | . 4 3 Slashing Weapon . | . . . Piercing Weapon . | . . . Special Melee Weapon . | . . . Unidentified Prototypes . | . . . Parts Lost 8 | . . 8 Power 2 | . . 2 Propulsion 4 | . . 4 Utility . | . . . Weapon 2 | . . 2 Highest Loss Streak 2 | . . 2 To Critical Strikes . | . . . Average Slot Usage (%) 95 | . 98 94 Engine 6 | . 1 8 Core 7 | . 12 5 Treads 18 | . 27 13 Wheel 6 | . . 9 Device 11 | . 10 12 Storage 14 | . 14 14 Protection 2 | . 3 1 Ballistic Gun 22 | . 25 20 Launcher 4 | . . 6 Impact Weapon 1 | . 1 1 Peak Build Rating 19 | 7 14 19 Average Rating 12 | 5 11 13 On Entrance 6 | . 7 13 Naked Turns . | . . . Heaviest Build 38 | 13 38 38 Greatest Support 40 | 40 40 40 Greatest Overweight (x) 9 | 3 9 1 Average Overweight (x) . | . . . Largest Inventory Capacity 15 | 8 15 15 Average Capacity 14 | 7 14 15 Most Carried 15 | 3 15 15 Average Carried 13 | 1 12 14 Final Capacity 15 | 8 15 15 Final Carried 15 | 3 15 15 Class Distribution -------------------- 100% | Mutant Dominant Class ---------------- Mutant | -10/Materials Mutant | -10/Subcaves Resources | -11 -10 -10 ----------- Run | Yrd Mat Sub Matter Collected 1991 | 306 587 1098 Remotely . | . . . Salvage Created 1049 | 70 537 442 Parts 84 | 9 38 37 Haulers Intercepted 1 | . 1 . Recyclers Shooed 1 | . 1 . Parts Field Recycled . | . . . Retrieved Matter . | . . . Parts Self-Destructed 15 | . . 15 Prevented . | . . . Kills | -11 -10 -10 ------- Run | Yrd Mat Sub Combat Hostiles Destroyed 33 | . 14 19 Guns 23 | . 14 9 AOE 10 | . . 10 Classes Destroyed 8 | 1 5 2 Tunneler 5 | 4 1 . Hauler 1 | . 1 . Recycler 1 | . 1 . Watcher 3 | . 3 . Swarmer 11 | . 6 5 Grunt 9 | . 8 1 Sentry 1 | . . 1 Subdweller 12 | . . 12 Best Kill Streak 4 | 4 4 4 Combat Bots Only 4 | . 3 4 Max Kills in Single Turn 4 | 1 2 4 Gunslinging 1 | . 1 . Exploded 4 | . . 4 Melee . | . . . Uniques/NPCs Destroyed . | . . . Combat | -11 -10 -10 -------- Run | Yrd Mat Sub Hostile Shots Fired 131 | . 61 70 Missed 34 | . 13 21 Damage Taken 1470 | . 524 946 Core 250 | . 79 171 Absorbed by Shields . | . . . Redirected to Shielding 4 | . 4 . Core Remaining (%) 100 | 100 . . Volleys Fired 115 | 13 48 54 Largest 2 | 2 2 2 Hottest 80 | 40 46 80 Shots Fired 193 | 26 88 79 Gun 165 | 26 88 51 Cannon 11 | . . 11 Launcher 17 | . . 17 Special . | . . . Kinetic 165 | 26 88 51 Thermal 11 | . . 11 Explosive 17 | . . 17 Electromagnetic . | . . . Robot Hit Streak 21 | 4 21 16 Robot Miss Streak 6 | 2 6 5 Penetration Max . | . . . Secondary Targets 3 | . 2 1 Max Gunslinging Chain 1 | . 1 1 Shots Hit Robots 136 | 17 63 56 Core Hits 70 | 5 32 33 Critical Kills . | . . . Critical Parts Destroyed . | . . . Critical Strikes 1 | . . 1 Destroy 1 | . . 1 Melee Attacks 17 | . 7 10 Impact 17 | . 7 10 Slashing . | . . . Piercing . | . . . Sneak Attacks . | . . . Combat Hostiles . | . . . Follow-up Attacks . | . . . Damage Inflicted 2903 | 207 1017 1679 Guns 2015 | 207 979 829 Cannons . | . . . Explosions 850 | . . 850 Melee . | . . . Ramming 38 | . 38 . Kinetic 2015 | 207 979 829 Thermal . | . . . Explosive 850 | . . 850 Electromagnetic . | . . . Impact . | . . . Slashing . | . . . Piercing . | . . . Highest Corruption . | . . . Average Corruption . | . . . Corruption Purged . | . . . Corruption Blocked . | . . . Overload Shots . | . . . Overflow Damage 32 | . . 32 Projectiles . | . . . Explosions 32 | . . 32 Melee . | . . . Knockbacks . | . . . Impact . | . . . Kinetic . | . . . Secondary . | . . . Self-Inflicted Damage 2 | . . 2 Shots 1 | . . 1 Rammed 3 | . 3 . Targets Rammed 5 | . 5 . Kicked . | . . . Crushed 2 | . 2 . Highest Temperature 75 | 6 75 . Average Temperature 31 | 6 31 . Received Heat Transfer 432 | . 213 219 Siege Activations . | . . . Robots Corrupted . | . . . Combat Hostiles . | . . . Parts Fried . | . . . Impact Corruptions . | . . . Robots Melted . | . . . Combat Hostiles . | . . . Parts Melted . | . . . Heat Transferred . | . . . Parts Sabotaged . | . . . Parts Stolen . | . . . Parts Stripped . | . . . Power Chain Reactions . | . . . Alert | -11 -10 -10 ------- Run | Yrd Mat Sub Peak Influence 199 | 20 199 . Initial 13 | . 13 . Average 74 | 9 80 . Maximum Alert Level . | . . . Low Security (%) 100 | 100 100 . Level 1 . | . . . Level 2 . | . . . Level 3 . | . . . Level 4 . | . . . Level 5 . | . . . High Security . | . . . Max Security . | . . . Squads Dispatched 2 | . 2 . Investigation 2 | . 2 . Extermination . | . . . Reinforcement . | . . . Assault . | . . . Garrison . | . . . Intercept . | . . . Searches Triggered . | . . . Construction Impeded . | . . . Haulers Reinforced . | . . . Active Scanning Responses . | . . . Cargo Convoy Interrupts . | . . . Stealth | -11 -10 -10 --------- Run | Yrd Mat Sub Distress Signals 1 | . 1 . Communications Jammed . | . . . Distress Signals . | . . . Times Spotted 43 | . 21 22 Peak Tracking Total 6 | . 3 6 Tactical Retreats 4 | . 2 2 Traps | -11 -10 -10 ------- Run | Yrd Mat Sub Traps Triggered 6 | . 5 1 Indirectly . | . . . Trap Hack Attempts . | . . . Triggered . | . . . Disarmed . | . . . Reprogrammed . | . . . Reused . | . . . Traps Extracted . | . . . Installed . | . . . Triggered 1 | . . 1 Most Traps Carried 2 | . . 2 Machines | -11 -10 -10 ---------- Run | Yrd Mat Sub Machines Disabled . | . . . Max in Single Turn . | . . . Machines Repaired . | . . . Machines Dismantled . | . . . Machines Sabotaged . | . . . Overloaded Fab Kills . | . . . Hacking | -11 -10 -10 --------- Run | Yrd Mat Sub Machines Accessed 10 | . 9 1 Terminals 7 | . 7 . Fabricators . | . . . Repair Stations . | . . . Recycling Units 2 | . 2 . Scanalyzers . | . . . Garrison Access . | . . . Total Hacks 37 | . 32 5 Successful 25 | . 20 5 Failed 11 | . 11 . Catastrophic 1 | . 1 . Database Lockouts 1 | . 1 . Manual 23 | . 23 . Terminals 28 | . 28 . Fabricators . | . . . Repair Stations . | . . . Recycling Units 4 | . 4 . Scanalyzers . | . . . Garrison Access . | . . . Terminal Hacks 14 | . 9 5 Record 5 | . . 5 Robot Analysis 4 | . 4 . Prototype ID Bank 2 | . 2 . Terminal Index 1 | . 1 . Registered Components 1 | . 1 . Zone Layout 1 | . 1 . Fabricator Hacks . | . . . Repair Station Hacks . | . . . Recycling Unit Hacks 2 | . 2 . Retrieve Components 2 | . 2 . Scanalyzer . | . . . Garrison Access Hacks . | . . . Unauthorized Hacks 9 | . 9 . Terminals 7 | . 7 . Assimilate 1 | . 1 . Botnet 1 | . 1 . Skim 5 | . 5 . Fabricators . | . . . Repair Stations . | . . . Recycling Units 2 | . 2 . Tunnel 2 | . 2 . Scanalyzers . | . . . Garrison Access . | . . . Data Cores Recovered . | . . . Used . | . . . Hacking Detections 7 | . 7 . Full Trace Events . | . . . Feedback Events . | . . . Feedback Blocked . | . . . Robot Schematics Acquired . | . . . Robots Built . | . . . Authchips . | . . . Time . | . . . Total Robot Build Rating . | . . . Part Schematics Acquired . | . . . Parts Built . | . . . Authchips . | . . . Time . | . . . Total Part Build Rating . | . . . Parts Repaired . | . . . Time . | . . . Parts Recycled . | . . . Recycled Matter . | . . . Retrieved Matter . | . . . Retrieved Components 6 | . 6 . Parts Scanalyzed . | . . . Part Schematics Acquired . | . . . Parts Damaged . | . . . Bothacking | -11 -10 -10 ------------ Run | Yrd Mat Sub Used RIF Installer . | . . . Robots Hacked . | . . . Non-combat . | . . . Combat . | . . . Robot Hacks Applied . | . . . Relay Couplers Released . | . . . Fabnet Peak Effective % . | . . . Robots Rewired . | . . . Allies Hacked . | . . . Hacks Repelled . | . . . Allies | -11 -10 -10 -------- Run | Yrd Mat Sub Total Allies 1 | . 1 . Largest Group 1 | . 1 . Highest-Rated Group 10 | . 10 . Highest-Rated Ally 10 | . 10 . Total Orders . | . . . Ally Attacks . | . . . Total Damage . | . . . Kills . | . . . Allies Corrupted . | . . . Allies Melted . | . . . Intel | -11 -10 -10 ------- Run | Yrd Mat Sub Robot Analysis Total 4 | . 4 . Derelict Logs Recovered 1 | . . 1 Drone Launches . | . . . Drone Recoveries . | . . . Exploration | -11 -10 -10 ------------- Run | Yrd Mat Sub Turns Passed 4355 | 134 1429 2792 Spaces Moved 2272 | 52 675 1545 Core 8 | 6 2 . Treads 1313 | 46 673 594 Legs . | . . . Wheels 951 | . . 951 Hover . | . . . Flight . | . . . Fastest Speed 50 | 50 160 110 Average Speed 143 | 153 161 134 Slowest Speed 500 | 200 500 240 Overloaded Moves . | . . . Propulsion Burnouts . | . . . Robots Hopped . | . . . Cave-ins Triggered . | . . . Exploration Rate (%) 56 | 5 83 80 Regions Visited 2 Branch Regions 1 Pre-discovered Areas 2 | . 2 . Known Exits Taken 1 | . 1 . Unknown Exits Taken 1 | 1 . . Scrap Searched 10 | . . 10 Spaces Dug 4 | . 4 . Terrain Destroyed 65 | . 4 61 Melee 4 | . 4 . Projectile 2 | . . 2 AOE 59 | . . 59 Terrain Rammed . | . . . Walls Destroyed . | . . . Machines Disabled . | . . . Actions | -11 -10 -10 --------- Run | Yrd Mat Sub Total 3134 | 77 906 2151 Wait 588 | 3 115 470 Move 2270 | 51 674 1545 Hop . | . . . Pick Up 31 | 3 15 13 Fast Attach 17 | 7 9 1 Attach 7 | . . 7 Detach 1 | . . 1 Swap 63 | . 23 40 Drop 20 | . 10 10 Fire 115 | 13 48 54 Melee 17 | . 7 10 Ram . | . . . Kick . | . . . Crush 5 | . 5 . Escape Stasis . | . . . Rewire . | . . . Trap . | . . . Miscellaneous . | . . . Route ------- -11/Scrapyard -10/Materials (discovered 6 exits: [*Mat x3] / *Min x2 / *Sub) -10/Subcaves (discovered 2 exits: [*Mat x2]) History --------- Turn | Location | Event 21 | -11/Scrapyard | Discovered new exit (range 15) 135 | -11/Scrapyard | Entered Materials 267 | -10/Materials | Central database locked down 269 | -10/Materials | Discovered new exit (range 15) 302 | -10/Materials | Build established: Mutant 409 | -10/Materials | Discovered new exit (range 7) 823 | -10/Materials | Discovered new exit (range 13) 981 | -10/Materials | Identified exit to Mines 1038 | -10/Materials | Learned 2 Storage zone layouts 1087 | -10/Materials | Learned Storage trap positions 1097 | -10/Materials | Discovered new exit (range 6) 1128 | -10/Materials | Identified exit to Subcaves 1128 | -10/Materials | Learned location of 1 exit from Materials 1159 | -10/Materials | Learned Storage trap positions 1187 | -10/Materials | Learned Recycling recycling unit intel 1206 | -10/Materials | Learned Storage terminal intel 1233 | -10/Materials | Learned Storage security intel 1564 | -10/Materials | Entered Subcaves 1602 | -10/Subcaves | A swath of the cavern ceiling suddenly collapsed 1724 | -10/Subcaves | A swath of the cavern ceiling suddenly collapsed 1975 | -10/Subcaves | Discovered new exit (range 15) 2028 | -10/Subcaves | Ambushed by Subdweller buried in earth 2209 | -10/Subcaves | Shifting Twisted Machinery released Barrage Gun 2365 | -10/Subcaves | Shifting Twisted Machinery released Mak. Shrapnel Gun 2388 | -10/Subcaves | Shifting Twisted Machinery released Sub. Beam Cannon 2548 | -10/Subcaves | Shifting Twisted Machinery released Mak. Light Armor Plating 3082 | -10/Subcaves | Ambushed by Subdweller buried in earth 3271 | -10/Subcaves | Core integrity fell below 50% 3698 | -10/Subcaves | Visited Clippyterm 3702 | -10/Subcaves | Learned Factory emergency access door positions 3702 | -10/Subcaves | Learned 40 Factory zone layouts 3730 | -10/Subcaves | Disturbed a concealed Subdweller 3756 | -10/Subcaves | Discovered new exit (range 10) 4034 | -10/Subcaves | Core integrity fell below 20% 4239 | -10/Subcaves | Learned 2 Materials zone layouts 4356 | -10/Subcaves | Destroyed by CM-VRM(R) with Subdweller Machine Gun Last Messages --------------- 04209_ Acquired 28 matter. 04209_ Searching scrap... 04209_ Found Sub. Machine Gun. 04209_ Found 31 Matter. 04210_ Searching scrap... 04210_ Found Sub. Laser. 04210_ Found 31 Matter. 04212_ Searching scrap... 04212_ Found Piercing Trap. 04212_ Found 55 Matter. 04213_ Searching scrap... 04213_ Found Sub. Monowheel. 04213_ Found 61 Matter. 04215_ Acquired Shrapnel Trap. 04239_ Acquired derelict log, extracted data. Data stored: Materials zone layouts (x2). 04260_ Acquired 10 matter. 04286_ Sub. Monowheel shoots sparks and powers down. 04313_ Acquired 7 matter. 04346_ Acquired 3 matter. Map ----- +----------------------------------------------------+ | ???????????# ??# ##?# ##?# ##??????? | | ???????????## ??# ##?# #??###???????? | | ????????????## #####??## #?## #????????????? | | ?????????????####????????### #??# #????????????? | | ???????????????????????????####??# #????????????? | | ????????????????????????????????## #????????????? | | ????????????????????????????????# ##????????????? | | ??????????????????????????????### ##?????????????? | | ??????????????????????????????# # ##?????????????? | | ???????????????????????????????# ##????????????? | | ???????????????????????????????# #????????????? | | ??????????????????????????????## ###????????????? | | ??????????????????????????????# #?????????????? | | ??????????????????????????????# ##?????????????? | | ??????????????????????????????# #?????????????? | | ??????????????????????????????## #?????????????? | | ??????????????????????????????# ###???????????? | | ??????????????????????????????# #???????????? | | ????????????????????#######??## ###?????????? | | ??????????????????###^"" <##?# #?????????? | | ?????????????????##""" <### #?????????? | | ?????????????????# && <## ## #????????? | | ????????????????##" "" ###< #?#######????????? | | ????????????????#" |# #< #????????????????? | | ????????????????#" [%% [# & #????????????????? | | ????????????????#" [%= #@[% ##??##????????????? | | ????????????????# %% R #< ##### ####????????? | | ????????????????#" & = ;; ;# ## ##???????? | | ????????????????#" # ## #####???? | | ????????????????##< & ;# ???? | | ?????????????????#< ! & ;# ???? | | ?????????????????##< &;;# ### #????? | | ??????????????????##; ;# #?# #????? | | ???????????????????######### ### #?###? | | ???????????????????????## # ### #? | | ?????????????????????### = ## #? | | ??????????####???????# ### ## | | ?????????## ##?####### ## ### # | | ??????#### ### ### #?## | | ??????#&#### ## ## #??### | | ??????#["# #" ## ## ##????### | | ??????# [# ### #???????## | | ??????#[&# #" < ## ## ##????????? | | ??????##&![## ## ## #### ##?????????? | | ???????#### ## ### ## ##??## ##??????????? | | ????????## ## ###?# ########????# #???????????? | | ????????# #?## ##??????????# ###?????????? | | ????????## ##?# #?????????## #?????????? | | ???######## ##??## ##???####### #?????????? | | ???#"""## ##???# ##?### #?????????? | +----------------------------------------------------+ Best States ------------- Heat Dissipation 25 Energy Generation 14 Energy Capacity 250 Matter Stores 300 Matter Capacity 300 Sight Range 16 Terrain Scan Density 10 Armor Coverage 225 Weapon Shielding 33 Evasion (%) 40 Recoil Reduction 2 Item Schematics ----------------- None Robot Schematics ------------------ None Fabricated ------------ Nothing Alien Tech Used ----------------- None Achievements -------------- None Challenges ------------ None Game ------ Seed HellfireNovaProtomatter Manual? 0 Play Time 00:33:26 Cumulative 223.4 hours Start 2024.09.05 @ 22:57:33 End 2024.09.05 @ 23:25:47 Sessions 1 Manual Loads 0 Difficulty Rogue Special Mode None Game No. 195 Rogue 195 Adventurer 0 Explorer 0 Win Type - Total 1 Types 0/0/0/1/0/0/0/0/0 Lore% 63 Gallery% 73 Achievement% 54 Wizard Run 0 Options --------- Layout 2 ASCII 0 Keyboard 1 Movement Vi Keybinds 0 Fullscreen 1 Font 32/SmallcapsGlow Map View 77x44 Zoom Use 0% Tactical HUD 1 Map Filters NONE Filters NONE Steam 1 RUN: 56a1589b-1e13-4eca-97a3-07d1132f5a83